bitfinex-derivatives/quotes_SOLF0:USTF0_20250125
["timestamp","ask_amount","ask_price","bid_price","bid_amount"]
[1737810121224,0.02864873,250.08,250.02,6.4156692]
[1737810122126,0.02864873,250.08,250.04,3.9999]
[1737810122528,0.02864873,250.08,250.04,6.38685373]
[1737810122829,0.02864873,250.08,250.06,10.38645373]
[1737810123029,0.02864873,250.08,250.03,6.38685373]
[1737810123222,0.02864873,250.08,250.06,3.9996]
[1737810124028,0.02864873,250.08,250.07,3.9994]
[1737810124730,0.02864873,250.08,250.04,3.9999]
[1737810125830,4.02794873,250.08,250.04,3.9999]
[1737810126230,0.02864873,250.08,250.03,6.38685373]
[1737810126530,0.02864873,250.08,250.05,3.9997]
[1737810129133,6.38685373,250.06,250.02,0.02881547]
[1737810129326,6.38685373,250.04,249.95,6.38685373]
[1737810129633,1.2638,250.03,249.97,4.001]
[1737810130026,5.264,250.03,249.97,6.38685373]
[1737810130333,5.264,250.03,249.98,4.0009]
[1737810130530,5.29450347,250.03,249.98,4.03148332]
[1737810133433,6.38685373,250.0,249.98,0.03058332]
[1737810134236,6.38685373,250.02,249.98,0.03058332]
[1737810134735,1.29430347,250.03,249.98,0.03058332]
[1737810134934,5.29440347,250.03,249.99,4.0007]
[1737810135233,5.29440347,250.03,249.98,0.03058332]
[1737810135434,1.29430347,250.03,249.98,0.03058332]
[1737810136337,4.0003,250.02,249.98,4.03138332]
[1737810137831,5.83431492,249.99,249.89,11.91489787]
[1737810138038,6.38685373,249.99,249.91,6.38685373]
[1737810138237,6.38685373,249.99,249.89,5.52804414]
[1737810138238,6.38685373,250.01,249.93,6.38685373]
[1737810138539,4.0005,250.0,249.95,4.0012]
[1737810138930,6.38685373,250.01,249.96,4.0011]
[1737810139134,0.02826629,250.0,249.96,4.0011]
[1737810139336,0.02826629,250.0,249.95,0.03057008]
[1737810139533,6.38685373,249.99,249.95,0.03057008]
[1737810139938,6.38685373,249.97,249.95,0.03057008]
[1737810140540,4.0012,249.96,249.95,0.03057008]
[1737810140740,6.38685373,249.97,249.88,4.0024]
[1737810140934,6.38685373,249.93,249.88,4.0024]
[1737810141733,4.0019,249.92,249.87,4.0026]
[1737810141934,8.824e-05,249.93,249.91,6.38685373]
[1737810142139,6.38685373,250.1,249.92,2.56]
[1737810142336,6.38685373,250.1,250.03,4.0]
[1737810142635,6.38685373,250.1,249.92,3.8895]
[1737810142636,6.38685373,250.08,249.99,6.38685373]
[1737810142836,6.38685373,250.1,250.01,6.38685373]
[1737810143136,0.02944849,250.08,250.03,0.02690114]
[1737810143341,0.02944849,250.08,250.03,6.41375487]
[1737810143645,0.02944849,250.08,250.03,4.02690114]
[1737810144237,0.02944849,250.08,250.03,0.02690114]
[1737810147541,4.02884849,250.08,250.03,0.02690114]
[1737810148142,0.02944849,250.08,250.03,4.02700114]
[1737810149646,0.02944849,250.08,250.04,3.9999]
[1737810149839,0.02944849,250.08,250.03,0.02690114]
[1737810151148,0.02944849,250.08,250.05,3.9997]
[1737810151645,0.02944849,250.08,250.07,3.9994]
[1737810152744,0.02944849,250.08,250.03,4.02680114]
[1737810152949,0.02944849,250.08,250.03,0.02690114]
[1737810153343,0.02944849,250.08,250.05,3.9996]
[1737810153544,0.02944849,250.08,250.03,0.02690114]
[1737810154048,4.02874849,250.08,250.04,3.9999]
[1737810155248,0.02944849,250.08,250.04,3.9999]
[1737810155749,0.02944849,250.08,250.03,4.02700114]
[1737810157249,4.02874849,250.08,250.03,4.02700114]
[1737810160953,3.9994,250.07,250.03,4.02700114]
[1737810165753,3.9994,250.07,250.04,6.38659695]
[1737810167256,3.9999,250.04,250.03,0.02690114]
[1737810167856,3.9999,250.04,249.93,10.50336272]
[1737810167857,4.0009,249.98,249.93,14.27185967]
[1737810168063,6.38659695,249.98,249.91,6.38659695]
[1737810168658,6.38659695,249.98,249.93,6.38659695]
[1737810169155,6.41425987,249.98,249.93,6.41673683]
[1737810170161,4.001,249.97,249.93,6.41673683]
[1737810171563,4.001,249.97,249.93,0.03013988]
[1737810172363,6.41425987,249.98,249.93,4.03173988]
[1737810173365,6.41425987,249.98,249.93,0.03013988]
[1737810174061,6.38659695,249.96,249.93,0.03013988]
[1737810174462,4.0015,249.94,249.93,0.03013988]
[1737810176662,6.41425987,249.98,249.93,0.03013988]
[1737810177368,6.41425987,249.98,249.93,4.03173988]
[1737810177963,4.0012,249.96,249.93,0.03013988]
[1737810179059,6.38659695,249.96,249.93,0.03013988]
[1737810179865,4.0015,249.94,249.93,0.03013988]
[1737810183271,10.38789695,249.96,249.93,0.03013988]
[1737810183671,6.38659695,249.96,249.93,0.03013988]
[1737810183969,4.0015,249.94,249.93,0.03013988]
[1737810184373,6.38659695,249.96,249.93,0.03013988]
[1737810184972,0.02766292,249.98,249.97,4.001]
[1737810185172,6.38659695,250.04,249.97,6.38659695]
[1737810185366,6.38659695,250.06,249.97,6.38659695]
[1737810185670,6.38659695,250.06,249.99,6.38659695]
[1737810186073,10.38629695,250.06,250.0,4.0005]
[1737810186471,10.41168235,250.06,250.0,4.03023139]
[1737810186670,10.41168235,250.06,250.0,0.02973139]
[1737810186867,6.41198235,250.06,250.0,0.02973139]
[1737810187573,10.41158235,250.06,250.0,4.03013139]
[1737810187772,6.38659695,250.04,250.0,0.02973139]
[1737810189168,10.38649695,250.04,250.0,0.02973139]
[1737810189376,6.38659695,250.04,250.0,0.02973139]
[1737810189573,6.41198235,250.06,250.0,0.02973139]
[1737810189769,6.41198235,250.06,250.02,4.0002]
[1737810190370,0.0253854,250.06,250.0,0.02973139]
[1737810190576,0.0253854,250.06,250.01,6.38659695]
[1737810190980,0.0253854,250.06,250.04,3.9999]
[1737810192680,0.0253854,250.06,250.05,3.9997]
[1737810201284,12.02,250.25,250.05,3.9997]
[1737810201285,6.38659695,250.2,250.05,6.38659695]
[1737810201492,6.38659695,250.2,250.17,3.9977]
[1737810202186,6.38659695,250.2,250.11,6.38659695]
[1737810202381,6.38659695,250.2,250.18,3.9976]
[1737810202787,6.38659695,250.2,250.16,0.02702694]
[1737810204191,10.38399695,250.2,250.16,0.02702694]
[1737810205691,3.9975,250.19,250.16,0.02702694]
[1737810206092,6.38659695,250.18,250.16,0.02702694]
[1737810206292,10.38429695,250.18,250.16,0.02702694]
[1737810206894,6.41661483,250.22,250.17,3.9978]
[1737810207090,6.38659695,250.2,250.16,0.02702694]
[1737810207285,6.38659695,250.18,250.16,0.02702694]
[1737810208696,6.38659695,250.2,250.16,0.02702694]
[1737810210797,10.38399695,250.2,250.16,0.02702694]
[1737810211297,6.41661483,250.22,250.16,0.02702694]
[1737810211596,0.03001788,250.22,250.17,6.38659695]
[1737810212093,6.38659695,250.2,250.16,0.02702694]
[1737810212296,6.41661483,250.22,250.16,0.02702694]
[1737810213596,0.03001788,250.22,250.16,0.02702694]
[1737810214296,0.03001788,250.22,250.17,6.38659695]
[1737810214898,0.03001788,250.22,250.19,6.38659695]
[1737810215097,0.03001788,250.22,250.21,3.9972]
[1737810215299,0.03001788,250.22,250.21,10.38379695]
[1737810215496,6.38659695,250.28,250.21,6.38659695]
[1737810215901,6.38659695,250.28,250.24,3.9966]
[1737810216199,6.38659695,250.28,250.21,6.38659695]
[1737810216500,6.38659695,250.28,250.23,3.9969]
[1737810216501,10.38269695,250.28,250.23,3.9969]
[1737810216798,0.02663919,250.27,250.23,3.9969]
[1737810218799,4.02293919,250.27,250.23,3.9969]
[1737810221302,0.02663919,250.27,250.23,3.9969]
[1737810221605,0.02663919,250.27,250.22,0.03059897]
[1737810221802,0.02663919,250.27,250.24,3.9967]
[1737810223705,0.02663919,250.27,250.22,0.03059897]
[1737810225102,0.02663919,250.27,250.24,3.9967]
[1737810225810,0.02663919,250.27,250.22,0.03059897]
[1737810226105,0.02663919,250.27,250.26,3.9964]
[1737810231614,0.02663919,250.27,250.25,3.9965]
[1737810232810,0.02663919,250.27,250.23,3.9967]
[1737810233613,0.02663919,250.27,250.22,0.03059897]
[1737810233914,0.02663919,250.27,250.24,3.9966]
[1737810234817,0.02663919,250.27,250.22,0.03059897]
[1737810235017,0.02663919,250.27,250.25,3.9965]
[1737810235315,0.02663919,250.27,250.23,6.38659695]
[1737810235517,0.02663919,250.27,250.25,3.9964]
[1737810235715,0.02663919,250.27,250.22,0.03059897]
[1737810235919,6.38659695,250.26,250.22,0.03059897]
[1737810236218,10.38309695,250.26,250.22,0.03059897]
[1737810237016,0.02663919,250.27,250.22,0.03059897]
[1737810237315,0.02663919,250.27,250.24,3.9967]
[1737810238516,0.02663919,250.27,250.26,3.9964]
[1737810250525,0.02663919,250.27,250.25,3.9965]
[1737810250723,0.02663919,250.27,250.23,6.38659695]
[1737810250921,0.02663919,250.27,250.25,3.9965]
[1737810251120,0.02663919,250.27,250.23,6.38659695]
[1737810251820,4.02283919,250.27,250.22,0.03059897]
[1737810253125,6.38659695,250.41,250.25,6.38659695]
[1737810253423,6.38659695,250.38,250.29,6.38659695]
[1737810254017,6.38659695,250.38,250.32,3.9954]
[1737810254328,6.38659695,250.34,250.32,0.02985261]
[1737810256127,3.9954,250.33,250.32,0.02985261]
[1737810257629,6.38659695,250.34,250.19,14.27185967]
[1737810257926,6.38659695,250.27,250.17,20.67118972]
[1737810258128,6.38659695,250.27,250.23,3.9968]
[1737810258525,6.38659695,250.29,250.23,3.9968]
[1737810258926,6.41698837,250.29,250.23,4.02550608]
[1737810259123,6.38659695,250.27,250.23,0.02870608]
[1737810259525,6.38659695,250.25,250.23,0.02870608]
[1737810261830,10.38279695,250.27,250.23,0.02870608]
[1737810262030,6.38659695,250.25,250.23,0.02870608]
[1737810262432,3.9967,250.24,250.23,0.02870608]
[1737810263327,6.38659695,250.25,250.17,6.39933005]
[1737810263526,3.9982,250.15,250.09,3.9991]
[1737810264122,6.38659695,250.16,250.1,3.9989]
[1737810264322,6.38659695,250.25,250.15,6.38659695]
[1737810264529,0.02561049,250.16,250.13,6.38659695]
[1737810264732,6.38659695,250.21,250.13,6.38659695]
[1737810264930,0.02804109,250.17,250.13,6.38659695]
[1737810265826,0.02804109,250.17,250.15,3.9981]
[1737810270546,0.02804109,250.17,250.12,0.02716094]
[1737810270847,0.02804109,250.17,250.16,3.998]
[1737810272249,0.02804109,250.17,250.14,3.9982]
[1737810272450,6.41463804,250.17,250.12,0.02716094]
[1737810272847,6.41463804,250.17,250.13,3.9984]
[1737810273143,6.41463804,250.17,250.12,0.02716094]
[1737810273647,6.41463804,250.17,250.13,3.9984]
[1737810273848,6.41463804,250.17,250.12,0.02716094]
[1737810274050,6.41463804,250.17,250.14,3.9983]
[1737810274351,0.02804109,250.17,250.15,6.38659695]
[1737810275246,0.02804109,250.17,250.16,3.998]
[1737810277252,0.02804109,250.17,250.13,6.38659695]
[1737810277253,6.41463804,250.17,250.13,3.9985]
[1737810278455,10.41243804,250.17,250.13,3.9985]
[1737810278956,6.41463804,250.17,250.13,3.9985]
[1737810279750,6.41463804,250.17,250.12,0.02716094]
[1737810279954,0.02804109,250.17,250.16,3.998]
[1737810280150,0.02804109,250.17,250.12,0.02716094]
[1737810280545,0.02804109,250.17,250.15,3.998]
[1737810281051,0.02804109,250.17,250.16,3.998]
[1737810282957,0.02804109,250.17,250.13,3.9983]
[1737810283151,0.02804109,250.17,250.12,0.02716094]
[1737810283152,6.41463804,250.17,250.12,0.02716094]
[1737810283552,3.998,250.16,250.12,0.02716094]
[1737810284455,3.9985,250.13,250.12,0.02716094]
[1737810284656,10.38509695,250.13,250.12,0.02716094]
[1737810285454,6.38659695,250.13,250.12,0.02716094]
[1737810286860,10.38509695,250.13,250.12,0.02716094]
[1737810288460,6.38659695,250.13,250.12,0.02716094]
[1737810294766,6.38659695,250.15,250.12,0.02716094]
[1737810294961,6.38659695,250.15,250.12,4.02576094]
[1737810295364,6.38659695,250.15,250.12,0.02716094]
[1737810296866,10.38479695,250.15,250.12,0.02716094]
[1737810297062,6.38659695,250.13,250.12,0.02716094]
[1737810300165,10.38509695,250.13,250.12,0.02716094]
[1737810301265,6.38659695,250.15,250.12,4.02576094]
[1737810302369,10.38479695,250.15,250.12,0.02716094]
[1737810304268,6.38659695,250.15,250.12,0.02716094]
[1737810304472,0.02804109,250.17,250.13,3.9985]
[1737810305272,0.02804109,250.17,250.14,3.9983]
[1737810307970,6.38659695,250.16,250.12,0.02716094]
[1737810308771,0.02804109,250.17,250.12,0.02716094]
[1737810309172,4.02584109,250.17,250.13,3.9985]
[1737810309471,4.02584109,250.17,250.12,0.02716094]
[1737810309670,6.38659695,250.16,250.12,0.02716094]
[1737810310267,3.9984,250.14,250.12,0.02716094]
[1737810310673,6.38659695,250.16,250.12,0.02716094]
[1737810312074,3.9981,250.15,250.12,0.02716094]
[1737810312275,6.38659695,250.14,250.02,5.3383]
[1737810312574,6.38659695,250.06,250.02,1.3381]
[1737810312974,6.38659695,250.06,250.04,3.9999]
[1737810313273,6.38659695,250.06,249.98,44.8403176]
[1737810313466,6.38659695,250.06,250.04,3.9999]
[1737810313670,6.41281437,250.08,250.04,3.9999]
[1737810313871,6.38659695,250.06,250.02,0.02718556]
[1737810314070,10.38619695,250.06,250.02,0.02718556]
[1737810315570,4.0001,250.03,250.02,0.02718556]
[1737810317576,4.0007,250.0,249.92,6.38659695]
[1737810317775,6.38659695,249.97,249.9,6.38659695]
[1737810318976,0.02895542,249.96,249.94,4.0015]
[1737810319669,6.38659695,249.95,249.91,0.02610296]
[1737810319871,6.38659695,249.92,249.91,0.02610296]
[1737810322081,6.38659695,249.92,249.78,6.38659695]
[1737810322276,6.38659695,249.92,249.77,1.3238]
[1737810322277,6.38659695,249.88,249.84,4.0031]
[1737810322483,6.38659695,249.9,249.82,6.38659695]
[1737810322676,6.38659695,249.88,249.82,6.38659695]
[1737810322882,6.38659695,249.88,249.85,4.0029]
[1737810323181,6.38659695,249.88,249.8,6.38659695]
[1737810323382,6.38659695,249.88,249.86,4.0028]
[1737810323681,0.02562233,249.89,249.86,4.0028]
[1737810324380,0.02562233,249.89,249.87,4.0025]
[1737810327377,6.38659695,249.88,249.84,0.02530453]
[1737810327582,6.38659695,249.86,249.84,0.02530453]
[1737810329277,6.38659695,249.86,249.84,4.02840453]
[1737810329677,6.38659695,249.88,249.84,0.02530453]
[1737810329980,0.02562233,249.89,249.88,4.0025]
[1737810330884,0.02562233,249.89,249.88,10.38909695]
[1737810331077,2.233e-05,249.89,249.88,10.38909695]
[1737810336287,2.233e-05,249.89,249.88,4.0025]
[1737810338889,2.233e-05,249.89,249.84,0.02530453]
[1737810339090,6.38659695,249.85,249.84,4.02840453]
[1737810339593,6.38659695,249.85,249.84,0.02530453]
[1737810339787,6.38659695,249.85,249.84,4.02840453]
[1737810339990,6.38659695,249.85,249.75,6.38659695]
[1737810340192,6.38659695,249.82,249.75,6.38659695]
[1737810340496,6.38659695,249.82,249.81,4.0036]
[1737810343298,6.38659695,249.82,249.8,4.0037]
[1737810343490,6.38659695,249.81,249.8,4.0037]
[1737810345801,6.38659695,249.81,249.79,0.02909174]
[1737810346204,6.38659695,249.81,249.67,6.38659695]
[1737810346404,6.38659695,249.74,249.67,6.38659695]
[1737810347102,6.38659695,249.74,249.69,4.0055]
[1737810347300,0.02525918,249.73,249.68,0.0268288]
[1737810347802,6.38659695,249.72,249.68,0.0268288]
[1737810349105,6.38659695,249.72,249.71,4.0052]
[1737810349599,0.02525918,249.73,249.68,0.0268288]
[1737810349802,5.918e-05,249.73,249.72,4.005]
[1737810357807,5.918e-05,249.73,249.68,0.0268288]
[1737810358004,5.918e-05,249.73,249.71,4.0052]
[1737810358208,5.918e-05,249.73,249.68,0.0268288]
[1737810358614,5.918e-05,249.73,249.7,4.0053]
[1737810359714,5.918e-05,249.73,249.68,4.0324288]
[1737810360315,13.24014791,249.72,249.68,4.0324288]
[1737810360814,13.24014791,249.72,249.68,0.0268288]
[1737810361213,9.23514791,249.72,249.68,0.0268288]
[1737810361419,4.0052,249.71,249.68,0.0268288]
[1737810361815,5.918e-05,249.73,249.68,0.0268288]
[1737810362012,5.918e-05,249.73,249.72,4.005]
[1737810366819,5.918e-05,249.73,249.68,4.0323288]
[1737810367016,9.23514791,249.72,249.68,0.0268288]
[1737810367622,4.0055,249.69,249.68,0.0268288]
[1737810368021,4.0053,249.71,249.68,0.0268288]
[1737810368322,9.23514791,249.72,249.68,0.0268288]
[1737810368621,13.24064791,249.69,249.68,0.0268288]
[1737810368923,9.23514791,249.69,249.55,4.0026]
[1737810369224,9.23514791,249.65,249.55,4.0026]
[1737810369419,9.23514791,249.65,249.51,9.23514791]
[1737810369723,4.0068,249.61,249.55,4.0077]
[1737810370224,0.02880217,249.6,249.56,0.02634372]
[1737810370420,9.23514791,249.59,249.56,0.02634372]
[1737810371122,4.0073,249.58,249.56,0.02634372]
[1737810371323,10.59944791,249.59,249.49,4.0086]
[1737810371522,9.23514791,249.55,249.44,7.86590926]
[1737810371723,9.23514791,249.55,249.51,4.0084]
[1737810372025,9.23514791,249.55,249.44,7.86590926]
[1737810372417,0.02889915,249.52,249.47,0.02627158]
[1737810373222,0.02889915,249.52,249.5,4.0085]
[1737810374020,0.02889915,249.52,249.48,4.0088]
[1737810374319,0.02889915,249.52,249.47,0.02627158]
[1737810374721,0.02889915,249.52,249.48,4.0088]
[1737810375127,9.26404706,249.52,249.47,0.02627158]
[1737810375325,9.23514791,249.49,249.32,9.23514791]
[1737810376422,0.02560862,249.43,249.38,0.02908187]
[1737810376619,0.02560862,249.43,249.35,9.23514791]
[1737810376925,7.85e-06,249.41,249.38,0.02731607]
[1737810377127,9.23514791,249.43,249.28,9.23514791]
[1737810377326,9.23514791,249.4,249.25,11.88494791]
[1737810377623,9.23514791,249.4,249.33,4.0112]
[1737810378127,0.02978463,249.39,249.34,0.02545566]
[1737810378327,0.02978463,249.39,249.35,4.011]
[1737810378522,0.02978463,249.39,249.34,0.02545566]
[1737810379417,0.02978463,249.39,249.37,4.0105]
[1737810385027,0.02978463,249.39,249.34,0.02545566]
[1737810385028,9.26493254,249.39,249.34,0.02545566]
[1737810385628,9.26493254,249.39,249.36,4.0107]
[1737810385826,9.26493254,249.39,249.34,0.02545566]
[1737810386832,0.02978463,249.39,249.34,0.02545566]
[1737810387133,0.02978463,249.39,249.38,4.0105]
[1737810389532,0.02978463,249.39,249.34,0.02545566]
[1737810390933,0.02978463,249.39,249.38,4.0105]
[1737810397431,8.463e-05,249.39,249.38,4.0105]
[1737810399233,8.463e-05,249.39,249.38,13.24564791]
[1737810399440,14.54294791,249.57,249.38,11.83514791]
[1737810399640,2.6447,249.58,249.43,9.23514791]
[1737810399843,2.6447,249.58,249.51,4.0083]
[1737810400739,0.02606781,249.57,249.52,0.02721066]
[1737810401240,0.02606781,249.57,249.52,4.03541066]
[1737810403535,0.02606781,249.57,249.52,0.02721066]
[1737810404634,9.26121572,249.57,249.52,0.02721066]
[1737810404836,13.26871572,249.57,249.52,0.02721066]
[1737810406939,13.26871572,249.57,249.52,4.03541066]
[1737810407142,9.26121572,249.57,249.52,4.03541066]
[1737810407440,9.26121572,249.57,249.52,0.02721066]
[1737810407636,9.26121572,249.57,249.53,4.008]
[1737810408742,9.26121572,249.57,249.52,0.02721066]
[1737810409543,4.0078,249.55,249.52,0.02721066]
[1737810410945,4.0076,249.56,249.52,0.02721066]
[1737810411846,9.26121572,249.57,249.52,0.02721066]
[1737810412048,9.26121572,249.57,249.54,4.0079]
[1737810412843,0.02606781,249.57,249.54,4.0079]
[1737810414339,0.02606781,249.57,249.52,0.02721066]
[1737810415249,0.02606781,249.57,249.56,4.0076]
[1737810416149,11.79294791,249.69,249.52,9.26235857]
[1737810416449,11.79294791,249.69,249.53,2.6021]
[1737810416650,9.23514791,249.69,249.65,4.006]
[1737810417246,9.26506874,249.69,249.65,4.03612616]
[1737810417751,9.26506874,249.69,249.65,0.03012616]
[1737810418352,9.23514791,249.66,249.65,0.03012616]
[1737810418552,9.23514791,249.66,249.53,2.6021]
[1737810418754,9.23514791,249.62,249.53,1.3193]
[1737810419146,9.23514791,249.62,249.5,1.3851]
[1737810419557,13.24184791,249.62,249.5,1.3851]
[1737810419755,0.02996803,249.58,249.54,0.02966525]
[1737810420152,0.02996803,249.58,249.54,4.03746525]
[1737810420962,0.02996803,249.58,249.55,4.0077]
[1737810421258,0.02996803,249.58,249.54,0.02966525]
[1737810421865,4.0075,249.57,249.54,0.02966525]
[1737810422064,0.02996803,249.58,249.54,0.02966525]
[1737810422866,0.02996803,249.58,249.56,4.0075]
[1737810423664,0.02996803,249.58,249.57,4.0074]
[1737810424764,6.803e-05,249.58,249.57,4.0074]
[1737810427863,1.3007,249.74,249.69,4.0055]
[1737810428068,9.23514791,249.77,249.61,9.23514791]
[1737810428369,4.0044,249.76,249.7,4.0052]
[1737810428965,0.02546153,249.75,249.71,0.02895977]
[1737810431064,0.02546153,249.75,249.73,4.0048]
[1737810431969,0.02546153,249.75,249.71,0.02895977]
[1737810433869,0.02546153,249.75,249.71,4.03395977]
[1737810434672,9.23514791,249.74,249.71,0.02895977]
[1737810435163,9.23514791,249.74,249.63,4.0063]
[1737810435369,9.23514791,249.71,249.63,4.0063]
[1737810435566,4.0055,249.69,249.63,4.0063]
[1737810435769,9.23514791,249.71,249.64,4.0062]
[1737810436570,0.02569253,249.7,249.65,0.03060777]
[1737810436775,4.0057,249.68,249.65,0.03060777]
[1737810437270,0.02569253,249.7,249.65,0.03060777]
[1737810438573,9.23514791,249.68,249.65,0.03060777]
[1737810438768,4.0062,249.65,249.6,4.0069]
[1737810438971,9.23514791,249.68,249.6,4.0069]
[1737810439172,9.23514791,249.68,249.55,9.23514791]
[1737810439371,2.6795,249.7,249.61,4.0067]
[1737810439570,9.23514791,249.74,249.58,9.23514791]
[1737810439770,0.02645057,249.68,249.64,0.02607348]
[1737810440674,0.02645057,249.68,249.66,4.0059]
[1737810442076,0.02645057,249.68,249.64,0.02607348]
[1737810442272,0.02645057,249.68,249.67,4.0058]
[1737810443271,0.02645057,249.68,249.65,4.006]
[1737810443577,0.02645057,249.68,249.64,0.02607348]
[1737810445073,0.02645057,249.68,249.64,4.03237348]
[1737810445474,0.02645057,249.68,249.64,0.02607348]
[1737810445674,9.26159848,249.68,249.64,0.02607348]
[1737810445875,4.0058,249.67,249.64,0.02607348]
[1737810446076,9.26159848,249.68,249.64,0.02607348]
[1737810446278,13.24134791,249.65,249.54,4.0078]
[1737810446477,13.24134791,249.65,249.5,1.3948]
[1737810446678,9.23514791,249.65,249.5,1.3948]
[1737810446878,9.23514791,249.65,249.61,4.0068]
[1737810447079,4.0061,249.66,249.61,4.0068]
[1737810447277,4.0061,249.66,249.52,9.23514791]
[1737810447278,2.6738,249.67,249.52,9.23514791]
[1737810447479,0.02590749,249.66,249.61,0.02977532]
[1737810447979,0.02590749,249.66,249.61,9.26492323]
[1737810449281,0.02590749,249.66,249.65,4.0062]
[1737810450577,7.49e-06,249.66,249.65,4.0062]
[1737810450781,9.23514791,249.83,249.64,9.23514791]
[1737810450984,9.23514791,249.83,249.7,9.23514791]
[1737810451876,0.02984781,249.79,249.74,0.0277946]
[1737810452081,0.02984781,249.79,249.76,4.0043]
[1737810452987,0.02984781,249.79,249.74,4.0323946]
[1737810454885,0.02984781,249.79,249.74,0.0277946]
[1737810455780,0.02984781,249.79,249.76,4.0044]
[1737810456186,0.02984781,249.79,249.74,0.0277946]
[1737810456391,0.02984781,249.79,249.75,4.0045]
[1737810457490,0.02984781,249.79,249.74,0.0277946]
[1737810457693,4.0041,249.78,249.74,0.0277946]
[1737810458193,0.02984781,249.79,249.74,0.0277946]
[1737810458385,9.23514791,249.75,249.55,7.96311938]
[1737810458588,9.23514791,249.67,249.52,2.6601]
[1737810459487,0.02933304,249.62,249.58,4.0072]
[1737810460591,0.02933304,249.62,249.57,0.02831038]
[1737810461586,4.03603304,249.62,249.57,0.02831038]
[1737810461786,0.02933304,249.62,249.57,0.02831038]
[1737810462495,4.007,249.6,249.57,0.02831038]
[1737810462986,9.23514791,249.61,249.57,0.02831038]
[1737810463496,4.007,249.6,249.57,0.02831038]
[1737810464592,4.0072,249.59,249.57,0.02831038]
[1737810467294,4.0073,249.58,249.57,0.02831038]
[1737810468485,4.007,249.6,249.57,0.02831038]
[1737810468695,0.02933304,249.62,249.57,0.02831038]
[1737810469289,4.0068,249.61,249.57,4.03571038]
[1737810469596,4.0068,249.61,249.57,0.02831038]
[1737810470296,4.007,249.6,249.57,0.02831038]
[1737810471495,4.0071,249.59,249.57,0.02831038]
[1737810472992,4.0073,249.58,249.57,0.02831038]
[1737810476598,9.23514791,249.59,249.57,0.02831038]
[1737810476899,13.24224791,249.59,249.57,0.02831038]
[1737810479003,9.23514791,249.59,249.57,0.02831038]
[1737810481306,4.0073,249.58,249.57,0.02831038]
[1737810482306,9.23514791,249.59,249.57,0.02831038]
[1737810483607,4.0073,249.58,249.57,0.02831038]
[1737810487301,4.0078,249.55,249.51,4.0083]
[1737810487501,9.23514791,249.54,249.51,4.0083]
[1737810487703,9.23514791,249.54,249.44,4.0094]
[1737810487912,9.23514791,249.51,249.41,2.7456]
[1737810488306,9.23514791,249.51,249.48,4.0089]
[1737810489105,9.23514791,249.51,249.44,0.0293749]
[1737810489305,9.23514791,249.51,249.49,4.0087]
[1737810490504,9.23514791,249.51,249.44,0.0293749]
[1737810490505,0.03035243,249.52,249.44,0.0293749]
[1737810490714,0.03035243,249.52,249.5,4.0085]
[1737810490909,0.03035243,249.52,249.44,0.0293749]
[1737810492112,0.03035243,249.52,249.51,4.0084]
[1737810495714,5.95392841,249.52,249.51,4.0084]
[1737810497611,0.03035243,249.52,249.51,4.0084]
[1737810497816,5.92357598,249.59,249.5,5.92357598]
[1737810498017,5.92357598,249.59,249.52,5.92357598]
[1737810499117,0.02922745,249.58,249.56,4.0076]
[1737810500718,0.02922745,249.58,249.57,4.0074]
[1737810502917,0.02922745,249.58,249.53,0.02794144]
[1737810503117,0.02922745,249.58,249.55,4.0076]
[1737810503317,0.02922745,249.58,249.53,0.02794144]
[1737810504119,0.02922745,249.58,249.56,4.0076]
[1737810506417,0.02922745,249.58,249.57,4.0074]
[1737810509528,0.02922745,249.58,249.53,0.02794144]
[1737810510027,4.0078,249.56,249.53,0.02794144]
[1737810511318,4.03662745,249.58,249.53,0.02794144]
[1737810511517,0.02922745,249.58,249.53,0.02794144]
[1737810511830,4.0075,249.57,249.53,0.02794144]
[1737810513527,9.24946755,249.57,249.53,0.02794144]
[1737810514129,4.0076,249.56,249.53,0.02794144]
[1737810514328,9.24946755,249.57,249.53,0.02794144]
[1737810514726,0.02922745,249.58,249.53,0.02794144]
[1737810516230,0.02922745,249.58,249.55,4.0076]
[1737810519327,0.02922745,249.58,249.53,0.02794144]
[1737810520029,4.0077,249.56,249.53,0.02794144]
[1737810520229,9.24946755,249.57,249.53,0.02794144]
[1737810521730,5.92205699,249.54,249.53,0.02794144]
[1737810523731,9.92995699,249.54,249.53,0.02794144]
[1737810534135,4.0077,249.56,249.53,0.02794144]
[1737810534728,4.0078,249.55,249.53,0.02794144]
[1737810535230,5.92205699,249.54,249.53,0.02794144]
[1737810541140,9.92995699,249.54,249.53,0.02794144]
[1737810543533,5.92205699,249.56,249.53,0.02794144]
[1737810543734,0.02922745,249.58,249.53,5.94999843]
[1737810544142,0.02922745,249.58,249.54,4.0078]
[1737810544342,0.02922745,249.58,249.53,5.94999843]